bitfinex-derivatives/quotes_ETHF0:USTF0_20250531
["timestamp","ask_amount","ask_price","bid_price","bid_amount"]
[1748694110583,0.79028,2529.5,2529.4,3.9981]
[1748694110775,0.79028,2529.5,2529.4,3.2078]
[1748694111376,0.79028,2529.5,2529.4,3.99811]
[1748694112187,0.79028,2529.5,2529.4,3.2078]
[1748694112475,0.79028,2529.5,2529.4,3.99811]
[1748694113972,0.79028,2529.5,2529.4,3.2078]
[1748694114371,0.79028,2529.5,2529.4,3.99811]
[1748694114572,0.79028,2529.5,2529.4,3.2078]
[1748694116279,0.79028,2529.5,2529.4,3.99811]
[1748694116479,0.79028,2529.5,2529.4,3.2078]
[1748694116680,0.79028,2529.5,2529.4,3.99811]
[1748694117480,0.1976,2529.6,2529.5,0.79028]
[1748694118682,0.1976,2529.6,2529.5,3.9167214]
[1748694121673,0.1976,2529.6,2529.5,0.79028]
[1748694122280,0.1976,2529.6,2529.5,2.12288]
[1748694124183,7.8795,2530.3,2530.0,0.79009]
[1748694124384,0.79012,2530.1,2530.0,0.79009]
[1748694129490,0.79015,2529.9,2529.8,3.90345049]
[1748694130086,0.79018,2529.8,2529.7,7.11129049]
[1748694130387,1.42468,2529.8,2529.7,7.11129049]
[1748694130884,1.42468,2529.8,2529.7,3.2078]
[1748694131688,0.79022,2529.7,2529.6,3.2078]
[1748694132186,1.4247,2529.8,2529.6,3.2078]
[1748694132387,0.79016,2529.9,2529.8,0.79018]
[1748694132588,1.41675,2530.0,2529.9,0.79015]
[1748694132986,0.79018,2529.9,2529.8,0.79016]
[1748694134289,0.79022,2529.8,2529.7,0.79021]
[1748694135689,0.79022,2529.7,2529.6,7.11132049]
[1748694136878,0.79022,2529.7,2529.6,6.32109049]
[1748694137082,0.79022,2529.7,2529.6,7.11134049]
[1748694139689,1.3678,2529.9,2529.6,6.32109049]
[1748694139885,0.7902,2529.8,2529.7,0.79018]
[1748694141292,0.7902,2529.8,2529.7,3.99798]
[1748694141494,0.7902,2529.8,2529.7,7.11127049]
[1748694142296,0.7902,2529.8,2529.7,8.35377049]
[1748694146799,0.7902,2529.8,2529.7,5.14597049]
[1748694146998,0.7902,2529.8,2529.7,8.35377049]
[1748694147503,0.9753,2529.8,2529.7,8.35377049]
[1748694147795,0.9753,2529.8,2529.7,5.14597049]
[1748694148099,0.9753,2529.8,2529.7,8.35377049]
[1748694150706,0.9753,2529.8,2529.7,7.56359049]
[1748694150905,0.9753,2529.8,2529.7,8.35381049]
[1748694151404,0.9753,2529.8,2529.7,7.56359049]
[1748694152209,0.9753,2529.8,2529.7,6.32109049]
[1748694154000,0.9753,2529.8,2529.7,7.11131049]
[1748694154311,0.9753,2529.8,2529.7,6.32109049]
[1748694155711,0.9753,2529.8,2529.7,6.39264388]
[1748694156908,0.9753,2529.8,2529.7,3.18484388]
[1748694157208,0.79022,2529.7,2529.6,3.2078]
[1748694157513,2.70642,2529.7,2529.6,3.2078]
[1748694160319,0.79028,2529.5,2529.4,1.3667]
[1748694160719,0.79031,2529.4,2529.3,0.79032]
[1748694161017,0.79034,2529.3,2529.2,4.61445]
[1748694161220,0.79034,2529.3,2529.2,5.98115]
[1748694161809,2.65882,2529.5,2528.8,9.42475578]
[1748694161810,26.8092,2529.4,2528.8,9.42475578]
[1748694162016,0.79047,2528.9,2528.8,8.74255578]
[1748694163108,0.79047,2528.9,2528.8,3.2078]
[1748694163821,2.04087,2528.9,2528.8,3.2078]
[1748694164919,0.79047,2528.9,2528.8,3.9983]
[1748694165519,0.79047,2528.9,2528.8,0.7905]
[1748694166115,0.7905,2528.8,2528.7,1.2438]
[1748694166314,0.7905,2528.8,2528.7,2.03433]
[1748694166510,0.7905,2528.8,2528.7,1.2438]
[1748694166715,0.7905,2528.8,2528.7,2.03433]
[1748694167224,0.7905,2528.8,2528.7,1.2438]
[1748694168618,0.79053,2528.7,2528.6,3.2078]
[1748694168818,1.44083,2528.7,2528.6,3.2078]
[1748694169217,0.79053,2528.7,2528.6,3.2078]
[1748694169624,0.79056,2528.6,2528.5,1.3622]
[1748694169825,0.79056,2528.6,2528.5,2.15279]
[1748694170018,0.97586,2528.6,2528.5,2.15279]
[1748694172926,0.1853,2528.6,2528.5,2.15279]
[1748694174921,0.1853,2528.6,2528.1,3.11117772]
[1748694174922,1.97648,2528.5,2528.1,3.11117772]
[1748694175128,0.79065,2528.3,2528.2,3.11117772]
[1748694175315,3.3931,2528.6,2528.5,0.79059]
[1748694175517,0.1853,2528.6,2528.5,0.79059]
[1748694175931,0.97586,2528.6,2528.5,0.79059]
[1748694176124,0.1853,2528.6,2528.5,2.08889]
[1748694176530,0.97586,2528.6,2528.5,2.08889]
[1748694178139,0.97586,2528.6,2528.5,1.2983]
[1748694179629,0.79059,2528.5,2528.4,1.2911]
[1748694180129,0.79059,2528.5,2528.4,2.6322]
[1748694180637,0.79059,2528.5,2528.4,3.42282]
[1748694181129,0.79059,2528.5,2528.4,3.42281]
[1748694181525,0.79059,2528.5,2528.4,2.6322]
[1748694181731,0.79059,2528.5,2528.4,3.42282]
[1748694182934,0.97588,2528.6,2528.5,0.79059]
[1748694183232,0.97588,2528.6,2528.5,1.3411]
[1748694183933,0.97588,2528.6,2528.5,2.13169]
[1748694184533,0.97588,2528.6,2528.5,1.3411]
[1748694184726,0.1853,2528.6,2528.5,2.13169]
[1748694184932,0.1853,2528.6,2528.5,1.3411]
[1748694184933,0.97586,2528.6,2528.5,1.3411]
[1748694185431,0.97586,2528.6,2528.5,2.13169]
[1748694185740,0.97586,2528.6,2528.5,1.3411]
[1748694186138,4.18366,2528.6,2528.5,1.3411]
[1748694187223,4.82576,2528.6,2528.5,1.3411]
[1748694187425,4.18366,2528.6,2528.5,1.3411]
[1748694187626,4.18366,2528.6,2528.5,2.13169]
[1748694187841,0.97586,2528.6,2528.5,1.3411]
[1748694188438,0.97586,2528.6,2528.5,2.13169]
[1748694191233,0.1853,2528.6,2528.5,2.13169]
[1748694192534,0.97586,2528.6,2528.5,2.13169]
[1748694195338,0.1853,2528.6,2528.5,2.13169]
[1748694196539,0.97586,2528.6,2528.5,2.13169]
[1748694197534,0.97586,2528.6,2528.5,0.79059]
[1748694197735,0.97588,2528.6,2528.5,0.79059]
[1748694199943,0.79059,2528.5,2528.4,1.2467]
[1748694200137,0.79059,2528.5,2528.4,2.03732]
[1748694201436,1.42258,2528.6,2528.5,0.79059]
[1748694201744,0.79058,2528.6,2528.5,2.14069]
[1748694202037,0.79058,2528.6,2528.5,5.2745095]
[1748694202235,0.97588,2528.6,2528.5,5.2745095]
[1748694203042,0.97588,2528.6,2528.5,3.9244095]
[1748694203244,0.97588,2528.6,2528.5,3.1338195]
[1748694204748,0.97588,2528.6,2528.5,3.9244095]
[1748694205343,0.1853,2528.6,2528.5,3.9244095]
[1748694205643,0.1853,2528.6,2528.5,5.1711095]
[1748694205842,3.2078,2528.9,2528.8,0.7905]
[1748694206143,0.00593132,2529.1,2528.6,1.97639]
[1748694206144,0.79635132,2529.1,2529.0,0.79043]
[1748694207345,0.79635132,2529.1,2528.9,3.1338195]
[1748694207346,0.79043,2529.0,2528.9,3.1338195]
[1748694208051,0.79043,2529.0,2528.9,3.9242895]
[1748694209152,0.79636132,2529.1,2529.0,0.79043]
[1748694209447,0.79636132,2529.1,2529.0,1.2839]
[1748694209746,0.79636132,2529.1,2529.0,1.9385]
[1748694212240,0.79636132,2529.1,2529.0,0.6546]
[1748694212437,0.79047,2528.9,2528.8,3.9242995]
[1748694213350,0.79046,2529.0,2528.9,0.79045]
[1748694213549,0.79636132,2529.1,2529.0,0.79043]
[1748694216351,0.79043,2529.0,2528.9,2.08474]
[1748694218151,0.79043,2529.0,2528.9,1.2943]
[1748694219545,0.79043,2529.0,2528.9,2.08477]
[1748694219745,0.79043,2529.0,2528.9,1.2943]
[1748694221347,0.79043,2529.0,2528.9,2.08477]
[1748694221553,0.79043,2529.0,2528.9,1.2943]
[1748694222355,0.79043,2529.0,2528.9,4.4281195]
[1748694222858,0.79636132,2529.1,2529.0,0.79043]
[1748694223054,0.79636132,2529.1,2529.0,2.07333]
[1748694225159,0.00593132,2529.1,2529.0,2.07333]
[1748694226157,0.00593132,2529.1,2529.0,5.2071495]
[1748694226760,0.79633132,2529.1,2529.0,5.2071495]
[1748694226959,0.00593132,2529.1,2529.0,5.2071495]
[1748694228158,0.79633132,2529.1,2529.0,5.2071495]
[1748694228966,0.79633132,2529.1,2529.0,4.4167195]
[1748694229666,0.79633132,2529.1,2529.0,3.1338195]
[1748694230372,0.79043,2529.0,2528.9,3.1338195]
[1748694230565,1.46553,2529.0,2528.9,3.1338195]
[1748694233272,1.46553,2529.0,2528.9,3.9242895]
[1748694233674,1.46553,2529.0,2528.9,0.79047]
[1748694234076,0.79043,2529.0,2528.9,0.79047]
[1748694235272,1.43476132,2529.1,2529.0,0.79043]
[1748694235575,0.79046,2529.0,2528.9,0.79044]
[1748694239580,0.79047,2528.9,2528.8,2.11518]
[1748694240071,0.79047,2528.9,2528.8,6.00087203]
[1748694240271,0.79047,2528.9,2528.8,3.88569203]
[1748694240977,0.79047,2528.9,2528.8,3.13242501]
[1748694242380,0.79053,2528.7,2528.6,3.13242501]
[1748694244176,2.04403,2528.7,2528.6,3.13242501]
[1748694244478,2.04403,2528.7,2528.6,3.92298501]
[1748694244979,2.04403,2528.7,2528.6,3.13242501]
[1748694245374,25.36103,2528.7,2528.6,3.13242501]
[1748694245579,28.56883,2528.7,2528.6,3.13242501]
[1748694245880,28.56883,2528.7,2528.3,4.67634203]
[1748694245881,0.79062,2528.4,2528.3,4.67634203]
[1748694246181,0.79081,2527.8,2527.7,10.18296428]
[1748694246878,2.67191,2527.8,2527.7,10.18296428]
[1748694247777,0.79086,2527.7,2527.6,0.79086]
[1748694247977,1.8811,2527.8,2527.5,1.9082]
[1748694248277,0.79087,2527.6,2527.5,2.69908]
[1748694248477,0.79086,2527.7,2527.5,2.69908]
[1748694248779,0.79086,2527.7,2527.6,0.79087]
[1748694249075,2.67785132,2527.8,2527.5,1.9082]
[1748694249276,1.42435132,2527.8,2527.7,0.79084]
[1748694249481,0.79085,2527.7,2527.6,0.79086]
[1748694249780,1.42435132,2527.8,2527.7,0.79084]
[1748694249981,0.79085,2527.7,2527.6,0.79086]
[1748694251074,0.79085,2527.7,2527.5,1.9082]
[1748694251478,0.79087,2527.7,2527.6,0.79087]
[1748694251678,0.79087,2527.6,2527.5,2.69908]
[1748694251878,0.79086,2527.7,2527.6,0.79087]
[1748694252179,0.79086,2527.7,2527.6,2.14547]
[1748694252482,0.79086,2527.7,2527.6,1.3546]
[1748694252677,0.79086,2527.7,2527.6,2.14547]
[1748694252875,0.79086,2527.7,2527.6,1.3546]
[1748694253682,0.79086,2527.7,2527.2,0.79098]
[1748694253683,0.79097,2527.3,2527.2,0.79098]
[1748694254180,0.79098,2527.3,2527.2,0.79098]
[1748694254381,18.9888,2527.5,2527.1,4.5552]
[1748694254582,20.3543,2527.5,2527.2,1.3474]
[1748694254776,20.3543,2527.5,2527.3,0.79097]
[1748694254777,1.45486,2527.4,2527.3,0.79097]
[1748694255084,0.6639,2527.4,2527.2,1.3474]
[1748694255284,1.45485,2527.4,2527.3,0.79097]
[1748694255986,0.6698,2527.5,2527.4,0.79094]
[1748694256378,0.79095,2527.4,2527.3,0.79095]
[1748694256675,0.79096,2527.4,2527.3,0.79096]
[1748694257586,0.79096,2527.4,2527.2,1.3474]
[1748694257587,0.6698,2527.5,2527.2,1.3474]
[1748694257787,0.79096,2527.4,2527.3,0.79095]
[1748694257981,1.46073,2527.5,2527.4,0.79094]
[1748694258288,0.79095,2527.4,2527.3,0.79095]
[1748694259189,18.9908,2527.5,2527.2,1.3474]
[1748694259484,0.79097,2527.3,2527.2,2.13837]
[1748694259786,0.98877,2527.3,2527.2,2.13837]
[1748694260181,0.1978,2527.3,2527.2,2.13837]
[1748694261183,0.98877,2527.3,2527.2,2.13837]
[1748694262089,0.1978,2527.3,2527.2,2.13837]
[1748694262589,0.98877,2527.3,2527.2,2.13837]
[1748694262889,0.1978,2527.3,2527.2,2.13837]
[1748694263590,0.98877,2527.3,2527.2,2.13837]
[1748694264890,0.1978,2527.3,2527.2,2.13837]
[1748694266593,0.98877,2527.3,2527.2,2.13837]
[1748694270500,0.1978,2527.3,2527.2,2.13837]
[1748694271000,0.98877,2527.3,2527.2,2.13837]
[1748694271196,0.98877,2527.3,2527.2,1.3474]
[1748694271497,0.79103,2527.1,2527.0,0.6795]
[1748694271702,0.79103,2527.1,2527.0,1.9526]
[1748694272401,0.79103,2527.1,2527.0,2.74366]
[1748694274100,0.79103,2527.1,2527.0,0.79106]
[1748694274292,0.79109,2526.9,2526.8,10.97509536]
[1748694274494,0.79109,2526.9,2526.8,8.25619536]
[1748694275490,0.79119,2526.6,2526.5,3.89742033]
[1748694275696,0.79122,2526.5,2526.4,3.89742033]
[1748694276498,0.79128,2526.3,2526.2,1.3165]
[1748694276705,0.79134,2526.1,2526.0,1.3165]
[1748694277209,0.79134,2526.1,2525.9,5.35532033]
[1748694277210,0.79136,2526.1,2525.9,5.35532033]
[1748694277404,5.1318,2526.3,2526.0,0.79137]
[1748694277604,0.79134,2526.1,2526.0,2.10787]
[1748694277805,0.79134,2526.1,2526.0,1.3165]
[1748694278399,0.79134,2526.1,2526.0,2.10786]
[1748694278599,0.79134,2526.1,2526.0,1.3165]
[1748694278994,5.1318,2526.3,2525.9,0.6665]
[1748694278995,23.4528,2526.3,2525.9,0.6665]
[1748694279205,3.2078,2526.0,2525.6,5.45647023]
[1748694279507,3.2078,2525.7,2525.6,6.24797023]
[1748694279709,3.2078,2525.7,2525.5,0.79152]
[1748694279907,3.2078,2525.7,2525.4,0.6727]
[1748694280101,3.99928,2525.7,2525.5,0.79151]
[1748694280602,3.2078,2525.7,2525.6,0.7915]
[1748694280800,3.2078,2525.7,2525.4,0.6727]
[1748694280995,0.79151,2525.6,2525.5,0.79152]
[1748694281200,3.9993,2525.7,2525.5,0.79152]
[1748694281402,0.7915,2525.6,2525.5,0.79152]
[1748694281603,3.2078,2525.7,2525.4,1.46424]
[1748694281805,0.79151,2525.6,2525.4,1.46426]
[1748694282109,0.79153,2525.5,2525.4,1.46424]
[1748694282503,0.79151,2525.6,2525.4,0.6727]
[1748694282705,0.79151,2525.6,2525.5,0.79153]
[1748694283209,0.79151,2525.6,2525.4,0.6727]
[1748694283398,0.79151,2525.6,2525.5,0.79153]
[1748694283604,3.2078,2525.7,2525.4,1.46423]
[1748694283803,0.79151,2525.6,2525.5,0.79153]
[1748694284007,3.99929,2525.7,2525.5,0.79153]
[1748694284208,3.2078,2525.7,2525.6,0.7915]
[1748694285810,3.2078,2526.1,2525.7,1.97868]
[1748694286010,3.2078,2526.1,2525.6,5.0]
[1748694286011,0.79138,2526.0,2525.8,0.6256]
[1748694286309,0.79137,2526.0,2525.9,0.7914]
[1748694286906,0.98927,2526.0,2525.9,0.7914]
[1748694287213,0.1979,2526.0,2525.8,0.6256]
[1748694287402,0.98929,2526.0,2525.9,0.7914]
[1748694289115,0.7914,2525.9,2525.8,1.417]
[1748694290516,0.7914,2525.9,2525.8,0.6256]
[1748694292018,1.4667,2525.9,2525.8,1.41704]
[1748694292411,0.79144,2525.8,2525.7,0.79145]
[1748694293717,2.65384,2525.9,2525.3,3.2078]
[1748694293914,1.3132,2525.7,2525.3,5.1427]
[1748694294218,0.79155,2525.5,2525.4,0.79155]
[1748694294517,0.79155,2525.5,2525.4,2.05075]
[1748694295408,1.3132,2525.7,2525.4,1.2592]
[1748694295613,0.79153,2525.5,2525.4,2.05074]
[1748694296317,0.79152,2525.6,2525.5,0.79152]
[1748694296620,0.79153,2525.5,2525.4,2.05074]
[1748694297616,0.79152,2525.6,2525.5,0.79152]
[1748694298116,0.6773,2525.8,2525.7,0.79147]
[1748694298312,0.79148,2525.7,2525.6,0.79148]
[1748694300620,0.79147,2525.7,2525.6,0.79148]
[1748694300815,0.6773,2525.8,2525.5,1.3573]
[1748694301017,0.7915,2525.6,2525.5,2.14881]
[1748694303219,0.79149,2525.7,2525.6,0.79148]
[1748694306620,0.6773,2525.8,2525.5,1.3573]
[1748694306830,1.487,2526.0,2525.6,5.18653]
[1748694306831,0.1979,2526.0,2525.6,5.18653]
[1748694307029,0.1979,2526.0,2525.9,0.7914]
[1748694307527,0.1979,2526.0,2525.9,3.90986157]
[1748694308428,0.1979,2526.0,2525.9,7.89586157]
[1748694308630,0.1979,2526.0,2525.9,11.10366157]
[1748694308824,0.1979,2526.0,2525.9,16.10366157]
[1748694309031,0.1979,2526.0,2525.9,12.9852]
[1748694310026,3.21373132,2526.5,2526.4,0.79125]
[1748694311430,3.21373132,2526.5,2526.4,2.05165]
[1748694311636,0.00593132,2526.5,2526.4,2.05165]
[1748694311934,0.00593132,2526.5,2526.4,5.19099507]
[1748694312824,0.00593132,2526.5,2526.4,2.05165]
[1748694313425,0.79125,2526.4,2526.3,3.13934507]
[1748694314024,0.79125,2526.4,2526.3,3.93062507]
[1748694314231,6.00007132,2526.5,2526.3,0.79128]
[1748694314429,6.00007132,2526.5,2526.4,0.79125]
[1748694314430,4.64427132,2526.5,2526.4,0.79125]
[1748694314637,4.00495132,2526.5,2526.4,0.79125]
[1748694314938,3.21373132,2526.5,2526.4,0.79125]
[1748694315130,0.00593132,2526.5,2526.4,0.79125]
[1748694315722,0.00593132,2526.5,2526.4,1.42095]
[1748694318238,0.00593132,2526.5,2526.4,2.68155]
[1748694318438,0.00593132,2526.5,2526.4,5.88935]
[1748694321941,0.00593132,2526.5,2526.4,2.68155]
[1748694322142,0.00593132,2526.5,2526.4,2.05185]
[1748694324645,0.79715132,2526.5,2526.4,2.05185]
[1748694325149,0.00593132,2526.5,2526.4,2.05185]
[1748694326649,0.79126,2526.4,2526.3,0.79126]
[1748694326946,1.46597132,2526.5,2526.4,0.79125]
[1748694327442,4.51413132,2526.5,2526.2,3.13934507]
[1748694327659,0.79131,2526.2,2526.1,3.13934507]
[1748694328346,0.79135,2526.1,2526.0,0.79137]
[1748694328544,0.6688,2526.1,2526.0,0.79137]
[1748694329142,1.46015,2526.1,2526.0,0.79137]
[1748694333657,0.79141,2525.9,2525.8,2.79991]
[1748694334150,0.6688,2526.1,2525.9,0.79141]
[1748694334151,1.4265,2526.0,2525.9,0.79141]
[1748694334352,2.6606,2526.0,2525.9,0.79141]
[1748694337252,2.0671,2526.0,2525.9,0.79141]
[1748694337458,2.85848,2526.0,2525.9,0.79141]
[1748694338362,2.0671,2526.0,2525.9,0.79141]
[1748694338562,2.85848,2526.0,2525.9,0.79141]
[1748694339062,2.0671,2526.0,2525.9,0.79141]
[1748694339461,0.833,2526.0,2525.9,0.79141]
[1748694339859,0.1979,2526.0,2525.9,2.03281]
[1748694341461,0.1979,2526.0,2525.9,5.17215507]
[1748694342266,0.1979,2526.0,2525.9,2.03281]
[1748694343065,0.00593132,2526.5,2526.4,0.79125]
[1748694344068,0.00593132,2526.5,2526.4,2.10375]
[1748694345172,0.79715132,2526.5,2526.4,1.3125]
[1748694346365,0.00593132,2526.5,2526.3,0.6232]
[1748694346676,0.7913,2526.3,2526.2,0.7913]
[1748694347567,0.79127,2526.4,2526.3,0.79127]
[1748694348068,5.31127132,2526.5,2526.4,0.79125]
[1748694348370,5.31127132,2526.5,2526.3,0.79126]
[1748694348669,0.79125,2526.4,2526.3,0.79126]
[1748694350573,0.79125,2526.4,2526.3,0.86281339]
[1748694350874,5.31127132,2526.5,2526.4,0.79125]
[1748694351372,0.79125,2526.4,2526.3,0.86282339]
[1748694351572,0.79125,2526.4,2526.3,0.79127]
[1748694351766,2.03675,2526.4,2526.3,0.79127]
[1748694352371,0.79131,2526.3,2526.2,0.7913]
[1748694352579,0.79131,2526.2,2526.1,3.13307159]
[1748694352878,0.79131,2526.2,2526.0,3.92443159]
[1748694352879,0.79135,2526.1,2526.0,3.92443159]
[1748694353069,1.42245,2526.1,2526.0,3.92443159]
[1748694353574,1.42245,2526.1,2526.0,0.79136]
[1748694353777,2.70625,2526.1,2526.0,0.79136]
[1748694355477,0.79138,2526.0,2525.9,3.13307159]
[1748694355874,2.07518,2526.0,2525.9,3.13307159]
[1748694356069,2.07518,2526.0,2525.9,0.79141]
[1748694356980,1.2838,2526.0,2525.9,0.79141]
[1748694357180,1.42247,2526.1,2526.0,0.79138]
[1748694358579,0.79138,2526.0,2525.9,3.13307159]
[1748694359476,0.79141,2525.9,2525.8,0.79142]
[1748694360578,2.11421,2526.0,2525.9,0.79141]
[1748694360767,0.79142,2525.9,2525.8,0.79142]
[1748694361270,1.3228,2526.0,2525.9,0.79141]
[1748694361271,2.1142,2526.0,2525.9,0.79141]
[1748694361472,0.6311,2526.1,2526.0,0.79138]
[1748694361672,19.72845,2526.1,2526.0,0.79138]
[1748694362378,1.42245,2526.1,2526.0,0.79138]
[1748694363078,1.42245,2526.1,2525.8,1.3338]
[1748694363079,0.79141,2525.9,2525.8,3.13307159]
[1748694363377,3.99921,2525.9,2525.8,3.13307159]
[1748694363975,0.79144,2525.8,2525.7,1.44735]
[1748694364173,1.44984,2525.8,2525.7,0.79145]
[1748694364376,0.79147,2525.7,2525.6,3.92457159]
[1748694365280,0.79147,2525.7,2525.6,3.13307159]
[1748694365578,2.03727,2525.7,2525.6,3.13307159]
[1748694366280,1.2458,2525.7,2525.6,3.92457159]
[1748694366479,0.79147,2525.7,2525.6,3.92457159]
[1748694367879,1.44986,2525.8,2525.7,0.79147]
[1748694368080,0.79147,2525.7,2525.6,2.04918]
[1748694368479,0.79147,2525.7,2525.6,1.2577]
[1748694368680,0.7915,2525.6,2525.5,3.13307159]
[1748694369480,3.9993,2525.6,2525.5,3.13307159]
[1748694369680,4.6257,2525.6,2525.5,3.13307159]
[1748694369881,4.6257,2525.6,2525.4,3.92461159]
[1748694369882,0.79153,2525.5,2525.4,3.92461159]
[1748694370181,3.8342,2525.6,2525.4,3.13307159]
[1748694370375,0.79153,2525.5,2525.4,3.92462159]
[1748694370573,3.9993,2525.6,2525.5,0.79153]
[1748694370780,3.9993,2525.6,2525.5,2.09273]
[1748694372184,3.9993,2525.6,2525.5,1.3012]
[1748694372379,3.2078,2525.6,2525.5,2.09273]
[1748694372581,3.2078,2525.9,2525.8,0.79144]
[1748694372772,3.99921,2525.9,2525.8,0.79144]
[1748694373477,3.99921,2525.9,2525.8,2.15784]
[1748694374581,3.99921,2525.9,2525.8,1.3664]
[1748694375173,4.19711,2525.9,2525.8,2.15784]
[1748694377989,4.19711,2525.9,2525.8,1.3664]
[1748694378789,4.19711,2525.9,2525.8,2.15784]
[1748694379293,3.4057,2525.9,2525.8,2.15784]
[1748694379488,0.1979,2525.9,2525.8,2.15784]
[1748694380188,0.98931,2525.9,2525.8,2.15784]
[1748694380588,0.98931,2525.9,2525.8,5.29091159]
[1748694381285,0.98931,2525.9,2525.8,2.15784]
[1748694382990,0.1979,2525.9,2525.8,2.15784]
[1748694383191,0.98931,2525.9,2525.8,5.29091159]
[1748694383589,0.1979,2525.9,2525.8,5.29091159]
[1748694386291,0.98931,2525.9,2525.8,5.29091159]
[1748694387890,0.1979,2525.9,2525.8,5.29091159]
[1748694390796,0.98931,2525.9,2525.8,5.29091159]
[1748694390991,0.98931,2525.9,2525.8,4.49947159]
[1748694391190,0.98931,2525.9,2525.8,5.29091159]
[1748694391698,0.98931,2525.9,2525.8,4.49947159]
[1748694392000,0.98931,2525.9,2525.8,3.92451159]
[1748694392296,0.98931,2525.9,2525.8,3.13307159]
[1748694392497,0.98931,2525.9,2525.8,0.79144]
[1748694392697,0.79144,2525.8,2525.7,4.56472159]
[1748694394297,0.79144,2525.8,2525.7,3.77327159]
[1748694394899,0.79144,2525.8,2525.7,3.92454159]
[1748694395398,0.79144,2525.8,2525.7,3.13307159]
[1748694395900,0.79147,2525.7,2525.6,3.13307159]
[1748694396502,0.79147,2525.7,2525.6,3.92457159]
[1748694397106,0.79147,2525.7,2525.6,5.24747159]
[1748694398499,0.79146,2525.8,2525.7,0.79144]
[1748694398899,0.79146,2525.8,2525.7,2.11434]
[1748694399603,2.06783,2525.9,2525.7,1.3229]
[1748694399806,1.45143,2525.9,2525.8,0.79144]
[1748694400007,1.64933,2525.9,2525.8,1.44924]
[1748694400606,0.98933,2525.9,2525.8,1.44924]
[1748694400795,0.98933,2525.9,2525.8,0.6578]
[1748694401196,0.98933,2525.9,2525.8,1.9957]
[1748694401497,0.1979,2525.9,2525.8,2.78714]
[1748694401902,0.98931,2525.9,2525.8,2.78714]
[1748694402212,0.1979,2525.9,2525.8,2.78714]
[1748694402414,0.1979,2525.9,2525.8,5.92021159]
[1748694402910,0.98931,2525.9,2525.8,5.92021159]
[1748694403508,0.1979,2525.9,2525.8,2.78714]
[1748694405298,3.8798,2526.2,2526.1,0.79135]
[1748694405299,3.2078,2526.2,2526.1,0.79135]
[1748694407811,4.00496132,2526.5,2526.4,0.79125]
[1748694408014,3.21373132,2526.5,2526.4,0.79125]
[1748694410015,3.21373132,2526.5,2526.4,2.13745]
[1748694410612,4.00495132,2526.5,2526.4,2.13745]
[1748694411913,3.21373132,2526.5,2526.4,2.13745]
[1748694412614,0.00593132,2526.5,2526.4,5.34525]
[1748694412912,3.2078,2527.0,2526.4,13.525]
[1748694413116,3.2078,2527.0,2526.9,0.7911]
[1748694413609,3.99875,2527.4,2527.3,0.79097]
[1748694413817,3.2078,2527.4,2527.3,0.79097]
[1748694414311,0.00593132,2527.6,2527.5,0.79091]
[1748694415808,0.79681132,2527.6,2527.5,0.79091]
[1748694417015,0.79681132,2527.6,2527.4,0.79092]
[1748694417220,0.79681132,2527.6,2527.5,0.79091]
[1748694418014,0.00593132,2527.6,2527.5,0.79091]
[1748694420809,0.00593132,2527.6,2527.5,1.42371]
[1748694422510,0.00593132,2527.6,2527.5,2.07371]
[1748694425010,0.79095,2527.4,2527.1,7.18373132]
[1748694425210,0.79095,2527.4,2527.3,0.79095]
[1748694425211,0.79096,2527.4,2527.3,0.79095]
[1748694425818,0.79096,2527.4,2527.2,0.6747]
[1748694426118,0.79096,2527.4,2527.3,0.79097]
[1748694426119,1.46736,2527.4,2527.3,0.79097]
[1748694426921,0.6764,2527.4,2527.3,0.79097]
[1748694428122,2.72744,2527.4,2527.3,0.79097]
[1748694428822,1.9365,2527.4,2527.1,3.21373132]
[1748694429122,2.05108,2527.3,2527.2,0.79098]
[1748694429318,1.2601,2527.3,2527.2,0.79098]
[1748694430222,0.6764,2527.4,2527.3,0.79097]
[1748694431110,1.46734,2527.4,2527.3,0.79097]
[1748694431315,0.79097,2527.3,2527.2,0.79098]
[1748694431718,2.09057,2527.3,2527.2,0.79098]
[1748694432425,1.2996,2527.3,2527.2,0.79098]
[1748694432926,0.6764,2527.4,2527.3,0.79097]
[1748694435617,0.6764,2527.4,2527.2,1.3564]
[1748694435820,0.6764,2527.4,2527.1,0.00593132]
[1748694435821,0.791,2527.2,2527.1,0.00593132]
[1748694436025,0.79106,2527.0,2526.9,3.14373315]
[1748694436334,3.99886,2527.0,2526.9,3.14373315]
[1748694436527,8.99886,2527.0,2526.9,3.14373315]
[1748694436822,0.79122,2526.6,2526.5,0.79121]
[1748694437225,0.79127,2526.4,2526.3,0.79127]
[1748694437421,2.67315,2526.5,2526.4,0.79125]
[1748694437817,1.8819,2526.5,2526.1,1.3663]
[1748694438030,2.04496,2526.4,2526.3,0.79126]
[1748694438328,1.2537,2526.4,2526.3,0.79126]
[1748694439631,2.04495,2526.4,2526.3,0.79126]
[1748694439830,1.2537,2526.4,2526.3,0.79126]
[1748694440232,1.2537,2526.4,2526.1,1.3663]
[1748694440233,0.6282,2526.5,2526.4,0.79125]
[1748694441125,3.2078,2526.7,2526.6,0.79119]
[1748694442029,3.99896,2526.7,2526.6,0.79119]
[1748694442232,3.99896,2526.7,2526.5,2.1145]
[1748694442832,0.79119,2526.6,2526.5,2.1145]
[1748694443033,0.79119,2526.6,2526.5,1.3233]
[1748694443735,0.79119,2526.6,2526.5,2.11452]
[1748694444233,0.79119,2526.6,2526.5,1.3233]
[1748694444935,0.79119,2526.6,2526.5,2.11452]
[1748694445432,3.99898,2526.7,2526.5,2.11452]
[1748694445631,3.99898,2526.7,2526.6,1.2448]